bitfinex-derivatives/quotes_BTCF0:USTF0_20251202
["timestamp","ask_amount","ask_price","bid_price","bid_amount"]
[1764672846718,0.59961,87396.0,87390.0,0.0114436]
[1764672846719,0.59961,87394.0,87393.0,0.06060643]
[1764672846925,0.59961,87391.0,87390.0,0.07205003]
[1764672847120,0.59961,87391.0,87390.0,0.73469227]
[1764672847933,0.59961,87391.0,87390.0,0.72324867]
[1764672848433,0.59961,87391.0,87390.0,0.66264224]
[1764672848627,0.59961,87391.0,87390.0,0.01789224]
[1764672849935,0.59961,87389.0,87388.0,0.06102876]
[1764672850127,0.611054,87388.0,87386.0,0.07247296]
[1764672850325,0.59961,87387.0,87386.0,0.0114442]
[1764672851535,0.59961,87384.0,87383.0,0.3608]
[1764672851834,0.0114445,87384.0,87383.0,0.06105369]
[1764672852138,0.80743,87380.0,87379.0,0.06105369]
[1764672852335,0.59961,87378.0,87377.0,0.06105369]
[1764672852533,0.59961,87376.0,87375.0,0.06105369]
[1764672853034,0.59961,87376.0,87375.0,0.09281307]
[1764672853538,0.59961,87376.0,87375.0,0.03175938]
[1764672855631,0.30293557,87384.0,87383.0,0.6561946]
[1764672855942,0.59972557,87384.0,87383.0,0.03175938]
[1764672856647,0.59972557,87384.0,87383.0,0.06226105]
[1764672857142,0.59972557,87384.0,87383.0,0.03175938]
[1764672857342,0.74972557,87384.0,87383.0,0.03175938]
[1764672857541,0.80743,87380.0,87378.0,0.03050167]
[1764672857732,0.59961,87372.0,87371.0,0.03050167]
[1764672857930,0.80743,87370.0,87369.0,0.03050167]
[1764672858242,0.6110564,87369.0,87368.0,0.03050167]
[1764672858436,0.6110564,87369.0,87367.0,0.03050167]
[1764672858635,0.6110568,87366.0,87365.0,0.03050167]
[1764672858935,0.6110568,87366.0,87356.0,0.06105369]
[1764672858936,0.59961,87357.0,87356.0,0.03050167]
[1764672859126,0.6110583,87355.0,87354.0,0.03050167]
[1764672859528,0.6110587,87352.0,87351.0,0.03061611]
[1764672859929,0.59961,87352.0,87351.0,0.03061611]
[1764672860136,0.59961,87352.0,87351.0,0.00011444]
[1764672860839,0.6110587,87352.0,87351.0,0.00011444]
[1764672861942,0.00012334,87357.0,87356.0,0.6561981]
[1764672862236,0.00017171,87360.0,87356.0,0.6561981]
[1764672862442,0.00017171,87360.0,87359.0,1.0169978]
[1764672863134,0.30282,87380.0,87379.0,0.6561951]
[1764672863339,0.59961,87390.0,87389.0,0.6561938]
[1764672863534,0.59966811,87390.0,87379.0,0.3608]
[1764672863734,0.59961,87386.0,87385.0,0.3225]
[1764672864440,0.36085811,87390.0,87389.0,0.64475]
[1764672864441,5.811e-05,87390.0,87389.0,0.64475]
[1764672864744,0.96046811,87390.0,87389.0,0.64475]
[1764672865145,0.66367811,87390.0,87389.0,0.64475]
[1764672865354,0.36085811,87390.0,87389.0,0.64475]
[1764672865846,0.59961,87389.0,87388.0,0.86022]
[1764672866647,0.59961,87389.0,87388.0,1.18247]
[1764672866846,0.59961,87389.0,87388.0,0.64475]
[1764672869545,0.59961,87389.0,87388.0,0.6763174]
[1764672870634,0.30282,87389.0,87388.0,0.6763174]
[1764672871050,0.36085811,87390.0,87389.0,0.6561938]
[1764672871245,0.36085811,87390.0,87389.0,0.6877612]
[1764672871751,5.811e-05,87390.0,87389.0,0.6877612]
[1764672871934,0.80748811,87390.0,87389.0,0.3540674]
[1764672872134,0.80748811,87390.0,87389.0,0.06203784]
[1764672872542,0.80748811,87390.0,87389.0,0.0315674]
[1764672872850,0.80748811,87390.0,87389.0,0.3540674]
[1764672873041,0.80748811,87390.0,87389.0,0.0315674]
[1764672874747,0.80748811,87390.0,87389.0,0.3405112]
[1764672874941,0.80748811,87390.0,87389.0,0.6263412]
[1764672874942,0.30287811,87390.0,87389.0,0.6263412]
[1764672875341,5.811e-05,87390.0,87389.0,0.6263412]
[1764672876244,0.59266811,87390.0,87389.0,0.6263412]
[1764672876447,0.75460811,87390.0,87389.0,0.0315674]
[1764672876849,0.59261,87386.0,87385.0,0.5486443]
[1764672877045,0.59261,87386.0,87385.0,1.16356718]
[1764672878749,0.59261,87386.0,87385.0,1.1319743]
[1764672880651,0.59261,87386.0,87377.0,0.00017171]
[1764672880851,0.59261,87378.0,87377.0,0.00017171]
[1764672881055,0.95346811,87378.0,87377.0,0.00017171]
[1764672882347,1.14346811,87378.0,87377.0,0.00017171]
[1764672882557,0.6040583,87355.0,87354.0,0.58333]
[1764672882858,0.59266811,87355.0,87354.0,0.58333]
[1764672883453,0.59266811,87355.0,87352.0,0.4436]
[1764672883659,0.59261,87352.0,87351.0,0.00011444]
[1764672884759,0.59261,87352.0,87351.0,0.29761444]
[1764672885557,0.6040587,87352.0,87351.0,0.00011444]
[1764672887058,0.59261,87352.0,87351.0,0.58344444]
[1764672890458,0.95341,87352.0,87351.0,0.00011444]
[1764672893463,0.95341,87352.0,87351.0,0.29761444]
[1764672894163,0.95341,87352.0,87351.0,0.00011444]
[1764672896958,0.95341,87352.0,87351.0,0.58344444]
[1764672897757,0.95341,87352.0,87351.0,0.00011444]
[1764672897963,0.95341,87352.0,87351.0,0.58344444]
[1764672900062,0.95341,87352.0,87351.0,0.29761444]
[1764672900263,0.95341,87352.0,87351.0,0.00011444]
[1764672901274,0.95341,87352.0,87351.0,0.58344444]
[1764672901275,0.65747,87352.0,87351.0,0.58344444]
[1764672901567,0.29667,87352.0,87351.0,0.58344444]
[1764672901873,0.59261,87352.0,87351.0,0.58344444]
[1764672904770,5.811e-05,87355.0,87354.0,0.51399]
[1764672905061,5.811e-05,87355.0,87354.0,1.06641958]
[1764672905577,0.00017171,87362.0,87354.0,1.06641958]
[1764672905578,0.00017171,87362.0,87361.0,0.5254375]
[1764672905775,1.0125,87381.0,87380.0,0.525435]
[1764672906072,1.0125,87381.0,87380.0,0.51399]
[1764672906268,0.88595,87381.0,87380.0,0.51399]
[1764672906762,0.52515,87376.0,87375.0,0.5254356]
[1764672906968,0.52515,87376.0,87375.0,0.51399]
[1764672907169,0.53209,87381.0,87372.0,0.00017171]
[1764672907170,0.52515,87373.0,87372.0,0.00017171]
[1764672907369,0.88595,87373.0,87372.0,0.00017171]
[1764672912773,0.88595,87373.0,87372.0,0.24568171]
[1764672913375,0.88595,87373.0,87372.0,0.51416171]
[1764672913579,0.88595,87373.0,87372.0,0.00017171]
[1764672914175,0.7078876,87360.0,87358.0,0.03047044]
[1764672914377,0.69644,87352.0,87351.0,0.24562444]
[1764672914562,0.69644,87352.0,87351.0,0.00011444]
[1764672914563,0.7078887,87352.0,87351.0,0.00011444]
[1764672915178,0.7078887,87352.0,87351.0,5.634e-05]
[1764672915576,0.3608,87359.0,87358.0,0.51399]
[1764672915883,0.00017171,87360.0,87359.0,0.5254378]
[1764672916173,0.00022981,87360.0,87359.0,0.5254378]
[1764672916375,0.3608,87373.0,87359.0,0.5254378]
[1764672916376,0.52515,87373.0,87372.0,0.5254361]
[1764672916771,0.88595,87373.0,87372.0,0.51399]
[1764672916970,0.52515,87362.0,87361.0,0.5254374]
[1764672918269,0.00017171,87370.0,87369.0,0.24551]
[1764672918567,0.0114464,87369.0,87365.0,0.0114469]
[1764672918770,0.69644,87363.0,87362.0,0.0114473]
[1764672918975,0.69644,87363.0,87362.0,0.5479273]
[1764672919174,0.69644,87363.0,87362.0,1.0619173]
[1764672919376,0.52515,87363.0,87362.0,1.0619173]
[1764672919570,0.26793,87363.0,87362.0,1.0619173]
[1764672919769,0.52515,87363.0,87362.0,1.0619173]
[1764672920067,0.69644,87363.0,87362.0,1.0619173]
[1764672920265,0.52515,87363.0,87362.0,1.0619173]
[1764672921381,0.52532171,87370.0,87369.0,0.5254364]
[1764672923373,0.52532171,87370.0,87369.0,0.51399]
[1764672927579,0.52515,87389.0,87388.0,0.51399]
[1764672928075,0.52515,87389.0,87388.0,0.24551]
[1764672928786,0.52515,87389.0,87388.0,0.51399]
[1764672929384,0.26793,87389.0,87388.0,0.51399]
[1764672929975,0.3608,87392.0,87389.0,0.0114438]
[1764672930173,0.3608,87392.0,87391.0,0.51399]
[1764672931275,0.00017171,87397.0,87384.0,0.54770594]
[1764672931276,0.00017171,87397.0,87396.0,0.5254329]
[1764672931580,0.26810171,87397.0,87396.0,1.0618329]
[1764672932280,0.52532171,87397.0,87396.0,1.0618329]
[1764672932682,0.44232654,87397.0,87396.0,1.0618329]
[1764672933088,0.58715,87407.0,87406.0,0.45908]
[1764672933390,0.0114416,87406.0,87399.0,0.4705225]
[1764672933589,0.4646,87400.0,87399.0,0.4705225]
[1764672935187,0.8254,87407.0,87406.0,0.4705216]
[1764672935385,0.23825,87407.0,87406.0,1.0068816]
[1764672935587,0.23842171,87411.0,87410.0,0.4705211]
[1764672935783,0.46477171,87411.0,87410.0,0.45908]
[1764672935985,0.4646,87395.0,87394.0,0.47069491]
[1764672936181,0.4646,87395.0,87394.0,0.99557171]
[1764672938080,0.4646,87395.0,87394.0,0.99553171]
[1764672938299,0.4646,87395.0,87394.0,0.45925171]
[1764672938589,0.4646,87395.0,87394.0,0.99553171]
[1764672940394,0.4646,87395.0,87394.0,0.45925171]
[1764672940593,0.4646,87395.0,87394.0,0.99553171]
[1764672941482,0.4646,87395.0,87394.0,0.00017171]
[1764672941689,0.4646,87395.0,87394.0,0.53641171]
[1764672941892,0.8254,87395.0,87394.0,0.53641171]
[1764672942084,0.8254,87395.0,87394.0,0.00017171]
[1764672943189,0.8254,87395.0,87394.0,0.45925171]
[1764672943695,0.8254,87395.0,87394.0,0.23472171]
[1764672943890,0.8254,87395.0,87394.0,0.00017171]
[1764672944284,0.82544,87395.0,87394.0,0.00017171]
[1764672944794,0.82544,87395.0,87394.0,0.23472171]
[1764672945187,0.836883,87395.0,87394.0,0.23472171]
[1764672945988,0.82544,87395.0,87394.0,0.23472171]
[1764672946786,0.82544,87395.0,87394.0,0.00017171]
[1764672952392,0.96386,87395.0,87394.0,0.00017171]
[1764672953302,0.82544,87395.0,87394.0,0.45925171]
[1764672953493,0.36084,87395.0,87394.0,0.45925171]
[1764672953800,0.59909,87395.0,87394.0,0.45925171]
[1764672954197,0.82544,87395.0,87394.0,0.45925171]
[1764672954698,0.82544,87395.0,87394.0,0.48954899]
[1764672955298,0.82544,87395.0,87394.0,0.45925171]
[1764672955604,0.82544,87395.0,87394.0,0.48956046]
[1764672956598,4e-05,87395.0,87394.0,0.48956046]
[1764672956801,0.46477171,87411.0,87410.0,0.4705211]
[1764672956992,0.00017171,87411.0,87410.0,1.03698985]
[1764672958215,0.23842171,87411.0,87410.0,1.03698985]
[1764672958590,0.46477171,87411.0,87410.0,1.02554875]
[1764672958800,0.46477171,87411.0,87410.0,1.03698985]
[1764672961403,0.00017171,87411.0,87410.0,1.03698985]
[1764672962406,0.46477171,87411.0,87410.0,0.03030875]
[1764672962604,0.46477171,87411.0,87410.0,0.56638875]
[1764672962793,0.46477171,87411.0,87410.0,0.80093875]
[1764672963611,0.46477171,87411.0,87410.0,1.01858875]
[1764672963807,0.46477171,87411.0,87410.0,0.03030875]
[1764672964111,0.46477171,87411.0,87410.0,0.56634875]
[1764672966009,0.4343,87402.0,87401.0,0.3608]
[1764672966306,0.4457421,87402.0,87401.0,1.13423429]
[1764672966611,0.4343,87402.0,87401.0,1.13423429]
[1764672966801,0.4343,87402.0,87401.0,1.32161]
[1764672968207,0.4343,87402.0,87401.0,1.10396]
[1764672968398,0.0114428,87397.0,87396.0,0.42477]
[1764672968602,0.0114428,87397.0,87394.0,0.00017171]
[1764672968603,0.4343,87395.0,87394.0,0.00017171]
[1764672968801,0.4343,87395.0,87384.0,0.0114444]
[1764672968802,0.5357055,87376.0,87375.0,0.3608]
[1764672968997,0.4343,87374.0,87373.0,0.44744]
[1764672969204,0.4343,87374.0,87373.0,0.87221]
[1764672969415,0.4343,87374.0,87373.0,0.8836559]
[1764672969611,0.45076,87384.0,87383.0,0.42477]
[1764672969612,0.7951,87384.0,87383.0,0.42477]
[1764672969810,0.4343,87384.0,87383.0,0.42477]
[1764672970010,0.06165926,87391.0,87390.0,0.0114437]
[1764672970206,0.4343,87391.0,87390.0,0.42477]
[1764672970414,0.4343,87386.0,87385.0,0.4362143]
[1764672972710,0.4343,87386.0,87385.0,0.42477]
[1764672974816,0.43434,87386.0,87385.0,0.42477]
[1764672975720,0.4343,87377.0,87376.0,0.42477]
[1764672975908,0.4343,87377.0,87376.0,0.96077]
[1764672976914,0.36084,87386.0,87385.0,0.42477]
[1764672976915,0.43434,87386.0,87385.0,0.42477]
[1764672977116,0.43434,87386.0,87385.0,0.96077]
[1764672977615,0.4343,87378.0,87377.0,0.78557]
[1764672977815,0.4343,87378.0,87377.0,0.99121225]
[1764672978022,0.4343,87378.0,87377.0,0.74312]
[1764672979320,0.4343,87378.0,87377.0,0.96077]
[1764672979519,0.4343,87376.0,87375.0,0.01161721]
[1764672979713,0.4343,87376.0,87375.0,0.04205325]
[1764672980021,0.4343,87376.0,87375.0,0.57805325]
[1764672980813,0.4343,87376.0,87375.0,0.78517325]
[1764672981415,0.4343,87376.0,87375.0,1.00282325]
[1764672982515,0.4343,87376.0,87375.0,0.97238721]
[1764672982719,0.4343,87376.0,87375.0,1.36360773]
[1764672986323,0.43434,87376.0,87375.0,1.36360773]
[1764672987223,0.43434,87376.0,87375.0,0.81616213]
[1764672987519,0.579,87376.0,87375.0,1.35216213]
[1764672987725,0.579,87376.0,87375.0,1.32174161]
[1764672988026,0.579,87376.0,87375.0,0.78574161]
[1764672988222,0.579,87376.0,87375.0,1.32174161]
[1764672988621,0.43434,87376.0,87375.0,1.32174161]
[1764672988916,0.579,87376.0,87375.0,1.10409161]
[1764672989425,0.579,87376.0,87375.0,1.13451944]
[1764672989625,0.5943,87376.0,87375.0,0.53617161]
[1764672990110,0.5943,87376.0,87375.0,0.96094161]
[1764672990312,0.5943,87376.0,87375.0,0.53617161]
[1764672990923,0.5943,87376.0,87375.0,0.74329161]
[1764672992127,0.01534,87376.0,87375.0,1.32174161]
[1764672992320,0.01534,87376.0,87375.0,0.96094161]
[1764672992815,0.01534,87376.0,87375.0,1.32174161]
[1764672993015,0.01534,87376.0,87375.0,0.96094161]
[1764672993523,0.01534,87376.0,87375.0,0.99139711]
[1764672995228,0.01534,87376.0,87375.0,1.35219711]
[1764672995826,0.01534,87376.0,87375.0,1.38269899]
[1764672996335,0.01534,87376.0,87375.0,1.35219711]
[1764672996825,0.01534,87376.0,87375.0,1.38272927]
[1764672997217,0.01534,87376.0,87375.0,1.35219711]
[1764672997815,4e-05,87386.0,87385.0,0.2041744]
[1764672998015,0.00017161,87392.0,87391.0,0.4003836]
[1764672998223,0.00017161,87392.0,87391.0,0.4308391]
[1764672999023,0.20103161,87392.0,87391.0,0.9667991]
[1764672999223,0.00017161,87392.0,87391.0,0.9667991]
[1764672999823,0.7572,87407.0,87406.0,0.38894]
[1764673000024,0.7572,87407.0,87406.0,0.9249]
[1764673000531,0.3608,87407.0,87406.0,0.9249]
[1764673000834,0.3964,87418.0,87417.0,0.38894]
[1764673001030,0.3964,87418.0,87417.0,0.92486]
[1764673001623,0.3608,87423.0,87422.0,0.19273]
[1764673001624,0.56166,87423.0,87422.0,0.19273]
[1764673001824,0.7572,87423.0,87422.0,0.38894]
[1764673002234,0.3964,87418.0,87417.0,0.92486]
[1764673004934,0.7572,87423.0,87422.0,0.38894]
[1764673008635,0.3608,87423.0,87422.0,0.38894]
[1764673009039,0.00017161,87426.0,87425.0,0.38894]
[1764673010338,0.3608,87437.0,87436.0,0.38894]
[1764673010524,0.3608,87437.0,87436.0,0.92466]
[1764673011131,0.7572,87442.0,87441.0,0.38894]
[1764673011332,0.3608,87442.0,87441.0,0.38894]
[1764673012539,0.56166,87442.0,87441.0,0.38894]
[1764673013234,0.7572,87442.0,87441.0,0.38894]
[1764673014027,0.7572,87442.0,87441.0,0.92458]
[1764673015124,0.3964,87442.0,87441.0,0.92458]
[1764673017836,0.3964,87442.0,87441.0,0.92454]
[1764673018038,0.39657161,87445.0,87444.0,0.38894]
[1764673018427,0.00017161,87445.0,87444.0,0.38894]
[1764673018630,0.20103161,87445.0,87444.0,0.38894]
[1764673019327,0.39657161,87445.0,87444.0,0.38894]
[1764673020238,0.5270872,87440.0,87439.0,0.3608]
[1764673020429,0.5270872,87440.0,87423.0,0.3608]
[1764673020430,0.4078375,87437.0,87423.0,0.3608]
[1764673020630,0.3964,87437.0,87436.0,0.89063161]
[1764673021438,0.00017161,87445.0,87444.0,0.38894]
[1764673021626,0.00017161,87445.0,87444.0,0.4003766]
[1764673022030,0.39657161,87445.0,87444.0,0.4003766]
[1764673022542,0.00017161,87445.0,87444.0,0.4003766]
[1764673022746,0.3608,87459.0,87449.0,0.372716]
[1764673023036,0.3608,87459.0,87449.0,1.268996]
[1764673023638,0.4875831,87472.0,87471.0,0.36128]
[1764673023836,0.4875831,87472.0,87471.0,0.89676]
[1764673024040,0.4789,87464.0,87463.0,0.00017151]
[1764673024347,0.4789,87464.0,87463.0,0.53565151]
[1764673024932,0.4789,87464.0,87463.0,0.00017151]
[1764673025233,0.4789,87464.0,87463.0,0.53561151]
[1764673026432,0.4789,87464.0,87463.0,0.00017151]
[1764673027742,0.0114367,87444.0,87442.0,0.36128]
[1764673028051,0.3569,87443.0,87442.0,0.36128]
[1764673028356,0.3569,87443.0,87442.0,0.89668]
[1764673028953,0.18369,87443.0,87442.0,0.89668]
[1764673029356,0.7291364,87446.0,87445.0,0.36128]
[1764673030353,0.7722364,87446.0,87439.0,0.3608]
[1764673030560,0.3683398,87420.0,87419.0,8.895e-05]
[1764673030737,0.7291398,87420.0,87419.0,0.36136895]
[1764673030942,0.3608,87420.0,87419.0,0.36136895]
[1764673031254,0.0114398,87420.0,87419.0,0.36136895]
[1764673031441,0.7291387,87428.0,87427.0,0.36128]
[1764673032148,0.3683398,87420.0,87419.0,0.00026046]
[1764673032352,0.3683398,87420.0,87419.0,0.18745046]
[1764673033055,0.3683398,87420.0,87419.0,0.00026046]
[1764673039147,0.3683398,87420.0,87419.0,0.18745046]
[1764673040251,0.3683398,87420.0,87419.0,0.00026046]
[1764673041660,0.0114398,87420.0,87419.0,0.36154046]
[1764673041858,0.1951298,87420.0,87419.0,0.36154046]
[1764673042159,0.3683398,87420.0,87419.0,0.36154046]
[1764673045661,0.18369,87420.0,87419.0,0.36154046]
[1764673045962,0.0114387,87428.0,87427.0,0.36128]
[1764673046171,0.3683384,87431.0,87430.0,0.36128]
[1764673049867,0.3683398,87420.0,87419.0,0.00026046]
[1764673050169,0.3683398,87420.0,87419.0,0.18745046]
[1764673050470,0.3683398,87420.0,87419.0,0.36154046]
[1764673051074,0.3683398,87420.0,87419.0,0.37298036]
[1764673053557,0.3683398,87420.0,87419.0,0.36154046]
[1764673053759,0.3683398,87420.0,87419.0,0.03083216]
[1764673053957,0.3683398,87420.0,87419.0,0.00026046]
[1764673054168,0.4229303,87416.0,87415.0,0.53536]
[1764673054370,0.4229303,87416.0,87415.0,0.56595135]
[1764673055174,0.42301925,87416.0,87415.0,0.56595135]
[1764673055371,0.42301925,87416.0,87415.0,0.73424135]
[1764673056572,0.42301925,87416.0,87415.0,0.56595135]
[1764673056957,0.42301925,87416.0,87415.0,0.53536]
[1764673058990,0.42753,87408.0,87407.0,0.00017151]
[1764673059188,0.0114433,87393.0,87392.0,0.00575759]
[1764673059386,0.34024225,87393.0,87392.0,0.00575759]
[1764673059685,0.34024225,87393.0,87381.0,0.01134895]
[1764673059686,0.3401547,87382.0,87381.0,0.01134895]
[1764673059985,0.32871,87381.0,87380.0,0.52909]
[1764673060289,0.32871,87381.0,87380.0,0.69668]
[1764673060684,0.3401559,87373.0,87372.0,0.33605161]
[1764673061580,0.32871,87373.0,87372.0,0.34749771]
[1764673063483,0.32871,87373.0,87372.0,0.33605161]
[1764673067793,0.32871,87373.0,87372.0,0.16846161]
[1764673067990,0.67871,87373.0,87372.0,0.00017161]
[1764673068189,0.67879874,87373.0,87372.0,0.00017161]
[1764673068386,0.32879874,87373.0,87372.0,0.00017161]
[1764673069797,0.67879874,87373.0,87372.0,0.00017161]
[1764673069984,0.340157,87365.0,87364.0,0.00014158]
[1764673070295,0.84103774,87365.0,87364.0,0.00014158]
[1764673070798,0.3401581,87356.0,87355.0,0.33476]
[1764673071094,0.7009581,87356.0,87355.0,0.33476]
[1764673071484,0.7009581,87356.0,87355.0,0.67064]
[1764673071698,0.70106253,87356.0,87355.0,0.33476]
[1764673073297,0.70106253,87356.0,87355.0,0.50305]
[1764673073487,0.70106253,87356.0,87355.0,0.16829]
[1764673073684,0.0114497,87344.0,87343.0,0.05]
[1764673073889,0.32871,87344.0,87343.0,0.38588]
[1764673074198,0.32871,87344.0,87343.0,0.3973299]
[1764673075700,0.42753,87344.0,87343.0,0.38588]
[1764673077382,0.4389797,87344.0,87343.0,0.38588]
[1764673077795,0.32871,87344.0,87343.0,0.38588]
[1764673077985,0.68951,87348.0,87347.0,0.33588]
[1764673080400,0.3608,87348.0,87347.0,0.33588]
[1764673081701,0.52959,87348.0,87347.0,0.33588]
[1764673081995,0.68951,87348.0,87347.0,0.33588]
[1764673082196,0.3401597,87344.0,87343.0,0.05]
[1764673082386,0.34024643,87344.0,87343.0,0.21829]
[1764673082589,0.34024643,87344.0,87343.0,0.05]
[1764673083094,0.34024643,87344.0,87343.0,0.19848]
[1764673083686,0.31524643,87344.0,87343.0,0.34258]
[1764673084090,0.32669613,87344.0,87343.0,0.34258]
[1764673084306,0.31524643,87344.0,87343.0,0.34258]
[1764673086900,8.673e-05,87344.0,87343.0,0.34258]
[1764673087301,8.673e-05,87344.0,87343.0,0.37303134]
[1764673088708,0.3608,87355.0,87354.0,0.29258]
[1764673089005,0.30288171,87364.0,87363.0,0.29258]
[1764673089215,0.30288171,87364.0,87363.0,0.32309677]
[1764673090009,0.30302456,87364.0,87363.0,0.32309677]
[1764673092803,0.14998456,87364.0,87363.0,0.32309677]
[1764673093003,0.30302456,87364.0,87363.0,0.32309677]
[1764673093603,0.00031456,87364.0,87363.0,0.32309677]
[1764673096509,0.00031456,87364.0,87363.0,0.3637991]
[1764673097009,0.00031456,87364.0,87363.0,0.32309677]
[1764673098996,0.00031456,87364.0,87363.0,0.68389677]
[1764673100895,0.30271,87381.0,87380.0,0.29258]
[1764673101111,0.30271,87381.0,87380.0,0.82798]
[1764673108418,0.30271,87381.0,87380.0,0.5354]
[1764673108618,0.30271,87373.0,87372.0,0.29275171]
[1764673108912,0.30271,87373.0,87372.0,0.82803171]
[1764673109318,0.30271,87373.0,87372.0,0.29275171]
[1764673109619,0.30271,87373.0,87372.0,0.00017171]
[1764673110007,0.15304,87364.0,87357.0,0.011448]
[1764673110208,0.3141579,87358.0,87357.0,0.14848]
[1764673110415,0.3141587,87352.0,87351.0,0.29258]
[1764673110601,0.30271,87344.0,87343.0,0.34258]
[1764673110800,0.30271,87344.0,87343.0,0.90810318]
[1764673111502,0.30271,87344.0,87343.0,0.37286318]
[1764673111706,0.30271,87344.0,87343.0,0.58524]
[1764673112210,0.30271,87344.0,87343.0,0.73372]
[1764673112415,0.3141597,87344.0,87343.0,0.34258]
[1764673112713,0.3141597,87344.0,87343.0,0.87782]
[1764673113215,0.3141597,87344.0,87343.0,0.05]
[1764673113423,0.3141597,87344.0,87343.0,0.58528]
[1764673114714,0.6749597,87344.0,87343.0,0.05]
[1764673115620,0.6749597,87344.0,87343.0,0.18333]
[1764673115820,0.6749597,87344.0,87343.0,0.05]
[1764673116211,0.6749597,87344.0,87343.0,0.18333]
[1764673116514,0.66351,87344.0,87343.0,0.31329]
[1764673117013,0.66351,87344.0,87343.0,0.34359203]
[1764673117318,0.00017171,87352.0,87351.0,0.2747388]
[1764673117523,0.00017171,87352.0,87351.0,0.84032083]
[1764673119629,0.00017171,87352.0,87351.0,1.20112083]
[1764673120724,0.00017171,87352.0,87351.0,1.23166635]
[1764673121020,0.0114463,87370.0,87369.0,0.26329]
[1764673121021,0.2751463,87370.0,87369.0,0.26329]
[1764673121208,0.2637,87370.0,87369.0,0.79857]
[1764673121826,0.49102,87373.0,87372.0,0.26329]
[1764673122025,0.6245,87373.0,87372.0,0.26329]
[1764673122222,0.49102,87373.0,87372.0,0.26329]
[1764673122423,0.3608,87373.0,87372.0,0.26329]
[1764673123020,0.49102,87373.0,87372.0,0.26329]
[1764673124421,0.6245,87373.0,87372.0,0.26329]
[1764673128823,0.6245,87373.0,87372.0,0.8099361]
[1764673129832,0.6245,87373.0,87372.0,0.79849]
[1764673130726,0.6245,87373.0,87372.0,0.26329]
[1764673130927,0.2637,87365.0,87364.0,0.26346171]
[1764673131126,0.2637,87365.0,87364.0,0.79862171]
[1764673131329,0.2637,87365.0,87364.0,0.53533171]
[1764673131929,0.2637,87365.0,87364.0,0.00017171]
[1764673134642,0.2637,87352.0,87351.0,0.26329]
[1764673134826,0.2751487,87352.0,87351.0,0.79841]
[1764673135228,0.2751496,87345.0,87344.0,0.62409]
[1764673135436,0.2751496,87345.0,87344.0,1.18957837]
[1764673136941,0.2751496,87345.0,87344.0,0.65445837]
[1764673137124,0.2751496,87345.0,87344.0,1.18957837]
[1764673137843,0.2637,87345.0,87344.0,1.18957837]
[1764673140741,0.2637,87345.0,87344.0,1.15921]
[1764673140944,0.2637,87345.0,87344.0,1.18959206]
[1764673145033,0.2637,87345.0,87344.0,0.82879206]
[1764673145235,0.2637,87345.0,87344.0,0.03038206]
[1764673145434,0.3608,87347.0,87333.0,0.39136322]
[1764673145435,0.2612797,87344.0,87333.0,0.39136322]
[1764673145634,0.2612797,87344.0,87339.0,0.53512]
[1764673145834,0.2612797,87344.0,87343.0,0.17796]
[1764673146445,0.2612797,87344.0,87343.0,0.05]
[1764673146842,0.2612797,87344.0,87343.0,0.29526]
[1764673147149,0.2612797,87344.0,87343.0,0.32566167]
[1764673147645,0.2612797,87344.0,87343.0,0.08040167]
[1764673147835,0.2612797,87344.0,87343.0,0.05]
[1764673149444,0.2612797,87344.0,87343.0,0.29526]
[1764673150247,0.00017171,87353.0,87344.0,0.0114497]
[1764673150433,0.12401171,87353.0,87352.0,0.24526]
[1764673150641,0.25000171,87353.0,87352.0,0.81068577]
[1764673151141,0.33289171,87353.0,87352.0,0.81068577]
[1764673154651,0.25000171,87353.0,87352.0,0.81068577]
[1764673155738,0.00017171,87353.0,87352.0,0.81068577]
[1764673156951,0.61063,87357.0,87356.0,0.24526]
[1764673157456,0.61063,87357.0,87356.0,0.27561127]
[1764673158055,0.61063,87357.0,87356.0,0.28705937]
[1764673158554,0.24983,87357.0,87356.0,0.28705937]
[1764673161954,0.24983,87357.0,87356.0,0.27561127]
[1764673162160,0.24983,87357.0,87356.0,0.03035127]
[1764673162358,0.61063,87357.0,87356.0,0.535]
[1764673162862,0.2612791,87349.0,87348.0,0.24543171]
[1764673163061,0.2612791,87349.0,87348.0,0.81079916]
[1764673163361,0.24983,87349.0,87348.0,0.81075916]
[1764673164257,0.61063,87357.0,87356.0,0.24526]
[1764673164650,0.48464,87357.0,87356.0,0.24526]
[1764673164850,0.3608,87357.0,87356.0,0.24526]
[1764673165453,0.61063,87357.0,87356.0,0.27562928]
[1764673165662,0.61063,87357.0,87356.0,0.15832928]
[1764673165861,0.61063,87357.0,87356.0,0.27562928]
[1764673167864,0.24983,87357.0,87356.0,0.27562928]
[1764673169672,0.24983,87362.0,87361.0,0.24526]
[1764673173058,0.47336,87364.0,87363.0,0.23266]
[1764673173862,0.58953,87364.0,87363.0,0.23266]
[1764673174062,0.58953,87364.0,87363.0,0.76754]
[1764673174264,0.47336,87364.0,87363.0,0.76754]
[1764673174872,0.58953,87364.0,87363.0,0.76754]
[1764673176074,0.58953,87364.0,87363.0,0.79789359]
[1764673177675,0.22873,87364.0,87363.0,0.79789359]
[1764673179882,0.2401771,87364.0,87363.0,0.68111359]
[1764673180084,0.2401771,87364.0,87363.0,0.56515359]
[1764673180377,0.6009771,87364.0,87363.0,0.56515359]
[1764673180582,0.6009771,87364.0,87363.0,0.5348]
[1764673180774,0.6019771,87364.0,87363.0,0.64858]
[1764673180975,0.6019771,87364.0,87363.0,0.5348]
[1764673181376,0.6149771,87364.0,87363.0,0.5348]
[1764673182782,0.2357383,87355.0,87354.0,0.2347784]
[1764673182985,0.2357383,87355.0,87354.0,0.80014664]
[1764673183185,0.9565383,87355.0,87354.0,0.03033866]
[1764673183370,0.9565383,87355.0,87348.0,0.00017171]
[1764673183371,0.2357391,87349.0,87348.0,0.00017171]
[1764673184681,0.2477391,87349.0,87348.0,0.00017171]
[1764673187381,0.012,87349.0,87348.0,0.22350171]
[1764673187772,0.12518,87349.0,87348.0,0.22350171]
[1764673187969,0.23629,87349.0,87348.0,0.22350171]
[1764673189087,0.012,87349.0,87348.0,0.22350171]
[1764673195194,0.012,87349.0,87348.0,0.25405111]
[1764673196194,0.23629,87349.0,87348.0,0.25405111]
[1764673196682,0.23629,87349.0,87348.0,0.25405175]